[Event "Late-Titled-Tuesday-Blitz-April-16-2024"]
[Site "Chess.com"]
[Date "2024.04.16"]
[Round "4"]
[White "Schattman"]
[Black "Charodej1"]
[Result "0-1"]
[WhiteElo "2453"]
[BlackElo "2310"]
[TimeControl "180+1"]
[EndTime "14:38:29 PDT"]
[Termination "Charodej1 won on time"]

1. f4 {[%clk 0:02:53.7]} 1... e5 {[%clk 0:02:54.2]} 2. fxe5 {[%clk 0:02:52.6]}
2... d6 {[%clk 0:02:54.8]} 3. exd6 {[%clk 0:02:53.4]} 3... Bxd6 {[%clk
0:02:55.2]} 4. Nf3 {[%clk 0:02:54.2]} 4... Nf6 {[%clk 0:02:50.4]} 5. d4 {[%clk
0:02:51.1]} 5... O-O {[%clk 0:02:41.1]} 6. Bg5 {[%clk 0:02:47.8]} 6... h6 {[%clk
0:02:39.6]} 7. Bh4 {[%clk 0:02:47.6]} 7... Re8 {[%clk 0:02:36.5]} 8. Nc3 {[%clk
0:02:46.7]} 8... Bf5 {[%clk 0:02:27.2]} 9. Qd2 {[%clk 0:02:41]} 9... c6 {[%clk
0:02:10.3]} 10. O-O-O {[%clk 0:02:32.1]} 10... Qc7 {[%clk 0:01:54.9]} 11. Kb1
{[%clk 0:02:32.1]} 11... Bf4 {[%clk 0:01:47]} 12. Qe1 {[%clk 0:02:31.7]} 12...
Nd5 {[%clk 0:01:43.9]} 13. Nxd5 {[%clk 0:02:19.4]} 13... cxd5 {[%clk 0:01:44.8]}
14. Ne5 {[%clk 0:02:19.3]} 14... Bxc2+ {[%clk 0:01:42.4]} 15. Ka1 {[%clk
0:02:17.7]} 15... Bxd1 {[%clk 0:01:42.6]} 16. Qxd1 {[%clk 0:02:17.9]} 16... Bxe5
{[%clk 0:01:41.8]} 17. dxe5 {[%clk 0:02:17.7]} 17... Qxe5 {[%clk 0:01:42.4]} 18.
Bg3 {[%clk 0:02:15.2]} 18... Qe6 {[%clk 0:01:42.2]} 19. e3 {[%clk 0:02:05.6]}
19... Nc6 {[%clk 0:01:37.1]} 20. Bb5 {[%clk 0:02:02.8]} 20... a6 {[%clk
0:01:36.8]} 21. Ba4 {[%clk 0:01:58.5]} 21... b5 {[%clk 0:01:32.3]} 22. Bc2
{[%clk 0:01:53.6]} 22... Rad8 {[%clk 0:01:18.5]} 23. Qd3 {[%clk 0:01:40.6]}
23... Qe4 {[%clk 0:01:01.7]} 24. Qc3 {[%clk 0:01:34.9]} 24... Qc4 {[%clk
0:01:01.9]} 25. Qd2 {[%clk 0:01:30.8]} 25... d4 {[%clk 0:01:01]} 26. Bb3 {[%clk
0:01:22.8]} 26... Qb4 {[%clk 0:00:46.9]} 27. Qxb4 {[%clk 0:01:11.2]} 27... Nxb4
{[%clk 0:00:47.8]} 28. exd4 {[%clk 0:01:11.8]} 28... Rxd4 {[%clk 0:00:47.7]} 29.
a3 {[%clk 0:01:12.4]} 29... Nd3 {[%clk 0:00:44.6]} 30. Rd1 {[%clk 0:01:10.5]}
30... Red8 {[%clk 0:00:42.6]} 31. Rf1 {[%clk 0:01:04.4]} 31... R4d7 {[%clk
0:00:38.4]} 32. Bh4 {[%clk 0:01:01.6]} 32... g5 {[%clk 0:00:36.9]} 33. Bg3
{[%clk 0:01:00.9]} 33... Nc5 {[%clk 0:00:36.9]} 34. Bc2 {[%clk 0:00:57.9]} 34...
a5 {[%clk 0:00:32.6]} 35. h4 {[%clk 0:00:56.2]} 35... Rd2 {[%clk 0:00:30.8]} 36.
Kb1 {[%clk 0:00:55.7]} 36... b4 {[%clk 0:00:30.3]} 37. Bc7 {[%clk 0:00:45.7]}
37... R8d7 {[%clk 0:00:29.7]} 38. Bxa5 {[%clk 0:00:41.7]} 38... Rxg2 {[%clk
0:00:27.1]} 39. Bxb4 {[%clk 0:00:36]} 39... Ne6 {[%clk 0:00:23]} 40. hxg5 {[%clk
0:00:32.8]} 40... hxg5 {[%clk 0:00:23.9]} 41. Bf5 {[%clk 0:00:31.8]} 41... g4
{[%clk 0:00:21.6]} 42. Bc3 {[%clk 0:00:30.4]} 42... g3 {[%clk 0:00:19.2]} 43.
Rh1 {[%clk 0:00:30.1]} 43... Rh2 {[%clk 0:00:19.4]} 44. Rg1 {[%clk 0:00:28.3]}
44... g2 {[%clk 0:00:19.9]} 45. Ka2 {[%clk 0:00:28.1]} 45... Rd5 {[%clk
0:00:18.3]} 46. Be4 {[%clk 0:00:27.4]} 46... Rg5 {[%clk 0:00:18.5]} 47. Bd2
{[%clk 0:00:23.9]} 47... Rg4 {[%clk 0:00:18.4]} 48. Bc6 {[%clk 0:00:23]} 48...
Rh1 {[%clk 0:00:16.9]} 49. Be3 {[%clk 0:00:18.1]} 49... Rxg1 {[%clk 0:00:17]}
50. Bxg1 {[%clk 0:00:19]} 50... Nf4 {[%clk 0:00:17.3]} 51. a4 {[%clk 0:00:16.1]}
51... Ne2 {[%clk 0:00:17.4]} 52. Bb6 {[%clk 0:00:14.2]} 52... g1=Q {[%clk
0:00:17]} 53. Bxg1 {[%clk 0:00:13.5]} 53... Rxg1 {[%clk 0:00:17.2]} 54. a5
{[%clk 0:00:12.8]} 54... Nd4 {[%clk 0:00:17.8]} 55. a6 {[%clk 0:00:12.5]} 55...
Nxc6 {[%clk 0:00:18]} 56. Kb3 {[%clk 0:00:11.2]} 56... Rg5 {[%clk 0:00:17.5]}
57. Kc4 {[%clk 0:00:10.7]} 57... Ra5 {[%clk 0:00:17.7]} 58. b4 {[%clk
0:00:10.8]} 58... Nxb4 {[%clk 0:00:17.7]} 59. Kxb4 {[%clk 0:00:10.7]} 59... Rxa6
{[%clk 0:00:18.1]} 0-1

[Event "Late-Titled-Tuesday-Blitz-April-16-2024"]
[Site "Chess.com"]
[Date "2024.04.16"]
[Round "4"]
[White "MeisterJabo"]
[Black "The_Machine04"]
[Result "1-0"]
[WhiteElo "2514"]
[BlackElo "2768"]
[TimeControl "180+1"]
[EndTime "14:38:30 PDT"]
[Termination "MeisterJabo won by checkmate"]

1. c4 {[%clk 0:02:59]} 1... d6 {[%clk 0:02:58.2]} 2. g3 {[%clk 0:02:59.1]} 2...
e5 {[%clk 0:02:57.9]} 3. Bg2 {[%clk 0:02:59.4]} 3... g6 {[%clk 0:02:53.6]} 4.
Nc3 {[%clk 0:02:58.3]} 4... Bg7 {[%clk 0:02:54]} 5. b4 {[%clk 0:02:58.8]} 5...
Ne7 {[%clk 0:02:54]} 6. Bb2 {[%clk 0:02:57.9]} 6... O-O {[%clk 0:02:54]} 7. d3
{[%clk 0:02:58.2]} 7... c6 {[%clk 0:02:46.4]} 8. Nf3 {[%clk 0:02:57.8]} 8... d5
{[%clk 0:02:45.7]} 9. O-O {[%clk 0:02:55.6]} 9... d4 {[%clk 0:02:45.4]} 10. Nb1
{[%clk 0:02:40]} 10... a5 {[%clk 0:02:37.7]} 11. b5 {[%clk 0:02:35.4]} 11... Nd7
{[%clk 0:02:27.1]} 12. a4 {[%clk 0:02:33.5]} 12... c5 {[%clk 0:02:23.6]} 13. e3
{[%clk 0:02:28.4]} 13... Rb8 {[%clk 0:02:22.8]} 14. exd4 {[%clk 0:02:28.2]}
14... exd4 {[%clk 0:02:17.9]} 15. Nbd2 {[%clk 0:02:24.2]} 15... b6 {[%clk
0:02:17.4]} 16. Re1 {[%clk 0:02:22.7]} 16... Bb7 {[%clk 0:02:15.5]} 17. Ne4
{[%clk 0:02:19.8]} 17... Nf6 {[%clk 0:02:13.5]} 18. Nfg5 {[%clk 0:02:09.9]}
18... Nxe4 {[%clk 0:02:01]} 19. Nxe4 {[%clk 0:02:05.1]} 19... Nf5 {[%clk
0:01:53.6]} 20. Bc1 {[%clk 0:02:02.1]} 20... Re8 {[%clk 0:01:39.6]} 21. Bf4
{[%clk 0:02:00.9]} 21... Be5 {[%clk 0:01:36.2]} 22. Qd2 {[%clk 0:01:57]} 22...
Bxf4 {[%clk 0:01:23.2]} 23. Qxf4 {[%clk 0:01:57.9]} 23... Bxe4 {[%clk
0:01:11.5]} 24. Bxe4 {[%clk 0:01:55.8]} 24... Nd6 {[%clk 0:01:05.1]} 25. Bd5
{[%clk 0:01:55.2]} 25... Qd7 {[%clk 0:01:02.4]} 26. h4 {[%clk 0:01:40.6]} 26...
Rbd8 {[%clk 0:00:36.1]} 27. Bc6 {[%clk 0:01:36.6]} 27... Rxe1+ {[%clk 0:00:31]}
28. Rxe1 {[%clk 0:01:37.5]} 28... Qf5 {[%clk 0:00:30.3]} 29. Qxf5 {[%clk
0:00:45.6]} 29... Nxf5 {[%clk 0:00:31.2]} 30. h5 {[%clk 0:00:46]} 30... Kf8
{[%clk 0:00:28]} 31. Kg2 {[%clk 0:00:44.6]} 31... Rd6 {[%clk 0:00:23.6]} 32.
Re8+ {[%clk 0:00:40]} 32... Kg7 {[%clk 0:00:23.6]} 33. g4 {[%clk 0:00:36.3]}
33... Nh4+ {[%clk 0:00:16.2]} 34. Kg3 {[%clk 0:00:36.5]} 34... g5 {[%clk
0:00:17.1]} 35. Be4 {[%clk 0:00:26.5]} 35... Rf6 {[%clk 0:00:07.5]} 36. f3
{[%clk 0:00:23.8]} 36... h6 {[%clk 0:00:03.8]} 37. Rc8 {[%clk 0:00:23.8]} 37...
Re6 {[%clk 0:00:02.7]} 38. Rc6 {[%clk 0:00:22.6]} 38... Kf6 {[%clk 0:00:03]} 39.
Bd5 {[%clk 0:00:18.9]} 39... Rxc6 {[%clk 0:00:02]} 40. bxc6 {[%clk 0:00:19.8]}
40... Ke7 {[%clk 0:00:02.4]} 41. Bxf7 {[%clk 0:00:18.1]} 41... Kd6 {[%clk
0:00:02.3]} 42. Bd5 {[%clk 0:00:18.2]} 42... Kc7 {[%clk 0:00:02.5]} 43. Be4
{[%clk 0:00:18]} 43... Kd6 {[%clk 0:00:02.5]} 44. f4 {[%clk 0:00:16.9]} 44...
Kc7 {[%clk 0:00:02.8]} 45. fxg5 {[%clk 0:00:17.1]} 45... hxg5 {[%clk 0:00:02.8]}
46. h6 {[%clk 0:00:17.6]} 46... Kd6 {[%clk 0:00:02.7]} 47. h7 {[%clk 0:00:17.4]}
47... b5 {[%clk 0:00:03.6]} 48. cxb5 {[%clk 0:00:17.3]} 48... Ng6 {[%clk
0:00:04.5]} 49. Bxg6 {[%clk 0:00:17.1]} 49... c4 {[%clk 0:00:05.4]} 50. dxc4
{[%clk 0:00:17.3]} 50... Kc5 {[%clk 0:00:06.3]} 51. h8=Q {[%clk 0:00:16.5]}
51... d3 {[%clk 0:00:07.2]} 52. Qc3 {[%clk 0:00:14.2]} 52... Kb6 {[%clk
0:00:08.1]} 53. Qxd3 {[%clk 0:00:14.4]} 53... Kc5 {[%clk 0:00:08.2]} 54. c7
{[%clk 0:00:13]} 54... Kb6 {[%clk 0:00:09.1]} 55. c8=Q {[%clk 0:00:08.9]} 55...
Ka7 {[%clk 0:00:10]} 56. Qd4# {[%clk 0:00:08.9]} 1-0

[Event "Late-Titled-Tuesday-Blitz-April-16-2024"]
[Site "Chess.com"]
[Date "2024.04.16"]
[Round "4"]
[White "dropstoneDP"]
[Black "Nf3c5"]
[Result "1/2-1/2"]
[WhiteElo "3050"]
[BlackElo "2647"]
[TimeControl "180+1"]
[EndTime "14:38:31 PDT"]
[Termination "Game drawn by repetition"]

1. e4 {[%clk 0:03:00.9]} 1... c5 {[%clk 0:02:59.3]} 2. Nf3 {[%clk 0:03:01.3]}
2... Nc6 {[%clk 0:02:58.9]} 3. Bb5 {[%clk 0:03:00.9]} 3... Na5 {[%clk
0:02:58.2]} 4. Be2 {[%clk 0:03:00.1]} 4... Nf6 {[%clk 0:02:40.7]} 5. e5 {[%clk
0:02:59]} 5... Nd5 {[%clk 0:02:40.8]} 6. d4 {[%clk 0:02:53.1]} 6... cxd4 {[%clk
0:02:38.8]} 7. c4 {[%clk 0:02:45.8]} 7... Nb4 {[%clk 0:02:35.4]} 8. Nxd4 {[%clk
0:02:34.3]} 8... Nac6 {[%clk 0:02:10.2]} 9. Nxc6 {[%clk 0:02:27]} 9... Nxc6
{[%clk 0:02:09.3]} 10. f4 {[%clk 0:02:27.5]} 10... g6 {[%clk 0:02:08]} 11. Be3
{[%clk 0:02:25.9]} 11... Bg7 {[%clk 0:02:08.2]} 12. Nc3 {[%clk 0:02:26.4]} 12...
O-O {[%clk 0:02:07.6]} 13. O-O {[%clk 0:02:26.6]} 13... f6 {[%clk 0:02:01.7]}
14. exf6 {[%clk 0:02:25.7]} 14... Bxf6 {[%clk 0:02:01.2]} 15. Qd2 {[%clk
0:02:25.1]} 15... d6 {[%clk 0:02:01.3]} 16. Rad1 {[%clk 0:02:20.9]} 16... Be6
{[%clk 0:01:52]} 17. b3 {[%clk 0:02:19.4]} 17... Qa5 {[%clk 0:01:48.3]} 18. Ne4
{[%clk 0:02:18.8]} 18... Qxd2 {[%clk 0:01:39.9]} 19. Nxf6+ {[%clk 0:02:17.7]}
19... Rxf6 {[%clk 0:01:39.6]} 20. Rxd2 {[%clk 0:02:18.6]} 20... Raf8 {[%clk
0:01:23.9]} 21. Rfd1 {[%clk 0:02:18.2]} 21... h5 {[%clk 0:01:22.4]} 22. g3
{[%clk 0:02:17.6]} 22... Bg4 {[%clk 0:01:21.2]} 23. Bxg4 {[%clk 0:02:17.1]}
23... hxg4 {[%clk 0:01:20.9]} 24. c5 {[%clk 0:02:18]} 24... Re6 {[%clk
0:01:18.4]} 25. Bf2 {[%clk 0:02:14.1]} 25... dxc5 {[%clk 0:01:17.9]} 26. Bxc5
{[%clk 0:02:15]} 26... Rf5 {[%clk 0:01:17.8]} 27. Bf2 {[%clk 0:02:05.5]} 27...
g5 {[%clk 0:01:18.2]} 28. Rd5 {[%clk 0:01:57.9]} 28... Rxd5 {[%clk 0:00:58.5]}
29. Rxd5 {[%clk 0:01:58.8]} 29... gxf4 {[%clk 0:00:57.8]} 30. gxf4 {[%clk
0:01:55.3]} 30... Kf7 {[%clk 0:00:56.1]} 31. Kf1 {[%clk 0:01:52.7]} 31... Re4
{[%clk 0:00:55.4]} 32. Rf5+ {[%clk 0:01:36.4]} 32... Ke6 {[%clk 0:00:52.9]} 33.
Rf8 {[%clk 0:01:36.2]} 33... Nd4 {[%clk 0:00:43.5]} 34. Ra8 {[%clk 0:01:22]}
34... Rxf4 {[%clk 0:00:29]} 35. Rxa7 {[%clk 0:01:21.7]} 35... b5 {[%clk
0:00:29.6]} 36. Rb7 {[%clk 0:01:16.3]} 36... Rf5 {[%clk 0:00:15.1]} 37. Kg2
{[%clk 0:01:13.2]} 37... Ne2 {[%clk 0:00:13.7]} 38. Be3 {[%clk 0:01:04]} 38...
Nc3 {[%clk 0:00:07.3]} 39. Ra7 {[%clk 0:01:02.5]} 39... Nd5 {[%clk 0:00:06.6]}
40. Bd2 {[%clk 0:00:59.5]} 40... Re5 {[%clk 0:00:07.2]} 41. Kg3 {[%clk
0:00:56.7]} 41... Re2 {[%clk 0:00:05.6]} 42. Bh6 {[%clk 0:00:51.7]} 42... Nf6
{[%clk 0:00:03]} 43. Bf8 {[%clk 0:00:40]} 43... Ne4+ {[%clk 0:00:03.3]} 44. Kxg4
{[%clk 0:00:39.6]} 44... Kd5 {[%clk 0:00:02.2]} 45. h4 {[%clk 0:00:37.7]} 45...
Rg2+ {[%clk 0:00:02.1]} 46. Kf3 {[%clk 0:00:36.9]} 46... Rf2+ {[%clk 0:00:02.1]}
47. Ke3 {[%clk 0:00:35.1]} 47... Rxf8 {[%clk 0:00:03]} 48. Rxe7 {[%clk
0:00:30.7]} 48... Nd6 {[%clk 0:00:03.7]} 49. Rh7 {[%clk 0:00:28.4]} 49... Rf1
{[%clk 0:00:02.2]} 50. h5 {[%clk 0:00:21]} 50... Ra1 {[%clk 0:00:02.7]} 51. Ra7
{[%clk 0:00:20.2]} 51... Rh1 {[%clk 0:00:02.2]} 52. a4 {[%clk 0:00:20.4]} 52...
Rh4 {[%clk 0:00:02.9]} 53. axb5 {[%clk 0:00:18.2]} 53... Nxb5 {[%clk 0:00:03.8]}
54. Rh7 {[%clk 0:00:17.7]} 54... Nd6 {[%clk 0:00:03.1]} 55. Kf3 {[%clk
0:00:18.2]} 55... Nf5 {[%clk 0:00:02.9]} 56. Rh8 {[%clk 0:00:18.8]} 56... Ke5
{[%clk 0:00:03.3]} 57. h6 {[%clk 0:00:16.6]} 57... Kf6 {[%clk 0:00:02.7]} 58. h7
{[%clk 0:00:16.5]} 58... Kg7 {[%clk 0:00:02.5]} 59. Ra8 {[%clk 0:00:16.4]} 59...
Kxh7 {[%clk 0:00:02.2]} 60. Rb8 {[%clk 0:00:16.6]} 60... Kg6 {[%clk 0:00:02.6]}
61. b4 {[%clk 0:00:16.9]} 61... Kg5 {[%clk 0:00:03]} 62. Rg8+ {[%clk 0:00:16.1]}
62... Kf6 {[%clk 0:00:03.4]} 63. Rb8 {[%clk 0:00:17]} 63... Kg5 {[%clk
0:00:04.1]} 64. Rg8+ {[%clk 0:00:16.8]} 64... Kf6 {[%clk 0:00:04.1]} 65. Rb8
{[%clk 0:00:17.7]} 65... Kg5 {[%clk 0:00:04.6]} 1/2-1/2

[Event "Late-Titled-Tuesday-Blitz-April-16-2024"]
[Site "Chess.com"]
[Date "2024.04.16"]
[Round "4"]
[White "AlexPapasimakopoulos"]
[Black "Jospem"]
[Result "0-1"]
[WhiteElo "2637"]
[BlackElo "3050"]
[TimeControl "180+1"]
[EndTime "14:38:41 PDT"]
[Termination "Jospem won by checkmate"]

1. d4 {[%clk 0:03:00.9]} 1... Nf6 {[%clk 0:02:59.5]} 2. c4 {[%clk 0:03:01.1]}
2... e6 {[%clk 0:03:00.3]} 3. Nc3 {[%clk 0:03:01.2]} 3... Bb4 {[%clk 0:03:01.1]}
4. Qc2 {[%clk 0:03:01.6]} 4... d6 {[%clk 0:03:01.1]} 5. f3 {[%clk 0:03:00.1]}
5... c5 {[%clk 0:03:01.2]} 6. dxc5 {[%clk 0:02:58.5]} 6... Bxc5 {[%clk
0:03:01.8]} 7. Na4 {[%clk 0:02:55.2]} 7... Nc6 {[%clk 0:02:59.8]} 8. Nxc5 {[%clk
0:02:54.8]} 8... dxc5 {[%clk 0:03:00.7]} 9. e3 {[%clk 0:02:54.5]} 9... e5 {[%clk
0:02:59.5]} 10. Bd2 {[%clk 0:02:53.1]} 10... Qe7 {[%clk 0:02:55.7]} 11. Ne2
{[%clk 0:02:53]} 11... Nb4 {[%clk 0:02:43]} 12. Qb3 {[%clk 0:02:40.3]} 12... O-O
{[%clk 0:02:36.6]} 13. a3 {[%clk 0:02:38.8]} 13... Nc6 {[%clk 0:02:36.1]} 14.
Nc3 {[%clk 0:02:38.8]} 14... Rd8 {[%clk 0:02:34.9]} 15. Be2 {[%clk 0:02:36.1]}
15... Be6 {[%clk 0:02:31.5]} 16. Qc2 {[%clk 0:02:29.3]} 16... Qd7 {[%clk
0:02:15.6]} 17. Rd1 {[%clk 0:02:26.4]} 17... Bf5 {[%clk 0:02:12.7]} 18. e4
{[%clk 0:02:18.2]} 18... Nd4 {[%clk 0:02:11.7]} 19. Qd3 {[%clk 0:02:15.1]} 19...
Be6 {[%clk 0:02:11]} 20. Nd5 {[%clk 0:02:14.9]} 20... Bxd5 {[%clk 0:02:08.9]}
21. cxd5 {[%clk 0:02:04.6]} 21... Ne8 {[%clk 0:02:08.7]} 22. O-O {[%clk
0:02:03.2]} 22... Nd6 {[%clk 0:02:07.9]} 23. f4 {[%clk 0:02:00.9]} 23... Re8
{[%clk 0:02:03.9]} 24. f5 {[%clk 0:01:59]} 24... f6 {[%clk 0:02:04]} 25. Bh5
{[%clk 0:01:54.9]} 25... Rf8 {[%clk 0:01:57.6]} 26. h4 {[%clk 0:01:50.5]} 26...
Qb5 {[%clk 0:01:56.4]} 27. Qxb5 {[%clk 0:01:36.1]} 27... N4xb5 {[%clk
0:01:57.3]} 28. Bf3 {[%clk 0:01:32.1]} 28... a5 {[%clk 0:01:57]} 29. Rc1 {[%clk
0:01:22.5]} 29... b6 {[%clk 0:01:56]} 30. Kf2 {[%clk 0:01:19]} 30... Nd4 {[%clk
0:01:55.5]} 31. Be3 {[%clk 0:01:15.3]} 31... Rac8 {[%clk 0:01:50.9]} 32. g4
{[%clk 0:01:10.5]} 32... b5 {[%clk 0:01:51.2]} 33. g5 {[%clk 0:01:08.8]} 33...
Kh8 {[%clk 0:01:07.4]} 34. h5 {[%clk 0:00:58.8]} 34... fxg5 {[%clk 0:00:59.8]}
35. Bxg5 {[%clk 0:00:59.7]} 35... N6xf5 {[%clk 0:00:57.5]} 36. exf5 {[%clk
0:00:38]} 36... Rxf5 {[%clk 0:00:58.4]} 37. Be7 {[%clk 0:00:36.9]} 37... e4
{[%clk 0:00:42.3]} 38. d6 {[%clk 0:00:34.2]} 38... Nxf3 {[%clk 0:00:35.3]} 39.
Ke3 {[%clk 0:00:32.9]} 39... Ra8 {[%clk 0:00:20.1]} 40. d7 {[%clk 0:00:30.9]}
40... Rd5 {[%clk 0:00:14.9]} 41. Rfd1 {[%clk 0:00:17.5]} 41... Nd4 {[%clk
0:00:15]} 42. d8=Q+ {[%clk 0:00:17.2]} 42... Rdxd8 {[%clk 0:00:15.7]} 43. Bxd8
{[%clk 0:00:18.1]} 43... Rxd8 {[%clk 0:00:16.4]} 44. Kxe4 {[%clk 0:00:18]} 44...
Re8+ {[%clk 0:00:13.4]} 45. Kd5 {[%clk 0:00:18.2]} 45... h6 {[%clk 0:00:13.9]}
46. Rb1 {[%clk 0:00:14.8]} 46... Nb3 {[%clk 0:00:14.1]} 47. Re1 {[%clk
0:00:13.6]} 47... Rf8 {[%clk 0:00:14.5]} 48. Rf1 {[%clk 0:00:13.2]} 48... Rd8+
{[%clk 0:00:15]} 49. Kc6 {[%clk 0:00:13.2]} 49... b4 {[%clk 0:00:13.9]} 50. a4
{[%clk 0:00:12.6]} 50... c4 {[%clk 0:00:13.3]} 51. Rbd1 {[%clk 0:00:12.6]} 51...
Rxd1 {[%clk 0:00:08.7]} 52. Rxd1 {[%clk 0:00:13.5]} 52... c3 {[%clk 0:00:09.6]}
53. bxc3 {[%clk 0:00:12.8]} 53... bxc3 {[%clk 0:00:10.5]} 54. Kb5 {[%clk
0:00:13.1]} 54... c2 {[%clk 0:00:10.6]} 55. Rg1 {[%clk 0:00:12.4]} 55... g5
{[%clk 0:00:08.2]} 56. hxg6 {[%clk 0:00:11.4]} 56... Kg7 {[%clk 0:00:08.8]} 57.
Rh1 {[%clk 0:00:06.6]} 57... h5 {[%clk 0:00:07.5]} 58. Rg1 {[%clk 0:00:02.6]}
58... h4 {[%clk 0:00:07.5]} 59. Rh1 {[%clk 0:00:02.8]} 59... c1=Q {[%clk
0:00:07.6]} 60. Rxc1 {[%clk 0:00:02.6]} 60... Nxc1 {[%clk 0:00:08.5]} 61. Kxa5
{[%clk 0:00:03.5]} 61... h3 {[%clk 0:00:09.2]} 62. Kb6 {[%clk 0:00:04.4]} 62...
h2 {[%clk 0:00:10.1]} 63. a5 {[%clk 0:00:05.3]} 63... h1=Q {[%clk 0:00:11]} 64.
Ka7 {[%clk 0:00:06.2]} 64... Nb3 {[%clk 0:00:10.5]} 65. a6 {[%clk 0:00:07.1]}
65... Nc5 {[%clk 0:00:10.8]} 66. Kb8 {[%clk 0:00:08]} 66... Nxa6+ {[%clk
0:00:10.9]} 67. Ka7 {[%clk 0:00:07.8]} 67... Qb1 {[%clk 0:00:10.6]} 68. Ka8
{[%clk 0:00:08]} 68... Qb8# {[%clk 0:00:10.2]} 0-1

[Event "Late-Titled-Tuesday-Blitz-April-16-2024"]
[Site "Chess.com"]
[Date "2024.04.16"]
[Round "4"]
[White "GMMikhailKazakov"]
[Black "Abhishek2"]
[Result "0-1"]
[WhiteElo "2506"]
[BlackElo "2386"]
[TimeControl "180+1"]
[EndTime "14:38:41 PDT"]
[Termination "Abhishek2 won by checkmate"]

1. e4 {[%clk 0:02:52.2]} 1... e5 {[%clk 0:02:59.9]} 2. Nf3 {[%clk 0:02:51.2]}
2... Nc6 {[%clk 0:03:00.3]} 3. Bc4 {[%clk 0:02:50.2]} 3... Nf6 {[%clk
0:03:00.2]} 4. d3 {[%clk 0:02:47.7]} 4... h6 {[%clk 0:02:58.8]} 5. h3 {[%clk
0:02:46.1]} 5... d6 {[%clk 0:02:56.8]} 6. c3 {[%clk 0:02:46]} 6... g5 {[%clk
0:02:56.9]} 7. Bb3 {[%clk 0:02:41.4]} 7... a5 {[%clk 0:02:55.6]} 8. Nbd2 {[%clk
0:02:40.6]} 8... Bg7 {[%clk 0:02:55.6]} 9. Nf1 {[%clk 0:02:40.2]} 9... Qe7
{[%clk 0:02:53.6]} 10. Ne3 {[%clk 0:02:38.2]} 10... Be6 {[%clk 0:02:52.8]} 11.
Ba4 {[%clk 0:02:16.1]} 11... O-O {[%clk 0:02:44.5]} 12. O-O {[%clk 0:02:12.8]}
12... d5 {[%clk 0:02:39.5]} 13. exd5 {[%clk 0:01:31.4]} 13... Nxd5 {[%clk
0:02:40.4]} 14. Re1 {[%clk 0:01:31.3]} 14... Rad8 {[%clk 0:02:34.9]} 15. Nxd5
{[%clk 0:01:28.6]} 15... Bxd5 {[%clk 0:02:17]} 16. d4 {[%clk 0:01:26.2]} 16...
Qd6 {[%clk 0:02:02.4]} 17. dxe5 {[%clk 0:01:04.1]} 17... Nxe5 {[%clk 0:01:54.3]}
18. Nxe5 {[%clk 0:01:01.9]} 18... Bxe5 {[%clk 0:01:55.2]} 19. Be3 {[%clk
0:00:51.9]} 19... Qf6 {[%clk 0:01:34.1]} 20. Qh5 {[%clk 0:00:45.8]} 20... Kg7
{[%clk 0:01:26.4]} 21. Bc2 {[%clk 0:00:44.6]} 21... Rde8 {[%clk 0:01:12.3]} 22.
Bc5 {[%clk 0:00:39.9]} 22... Rh8 {[%clk 0:01:03.5]} 23. Be3 {[%clk 0:00:35.5]}
23... Re6 {[%clk 0:00:53.4]} 24. a3 {[%clk 0:00:31.7]} 24... b6 {[%clk
0:00:51.5]} 25. Qg4 {[%clk 0:00:31.6]} 25... Rd6 {[%clk 0:00:31.3]} 26. Rad1
{[%clk 0:00:26.2]} 26... Rhd8 {[%clk 0:00:26.6]} 27. Qf5 {[%clk 0:00:24.6]}
27... Be6 {[%clk 0:00:25.2]} 28. Qh7+ {[%clk 0:00:21.7]} 28... Kf8 {[%clk
0:00:25.6]} 29. Rxd6 {[%clk 0:00:20.5]} 29... Rxd6 {[%clk 0:00:22.3]} 30. Qe4
{[%clk 0:00:18.9]} 30... Bd5 {[%clk 0:00:19.3]} 31. Qh7 {[%clk 0:00:15.4]} 31...
Ke7 {[%clk 0:00:18.1]} 32. Bd4 {[%clk 0:00:15.1]} 32... Re6 {[%clk 0:00:17.3]}
33. Bxe5 {[%clk 0:00:12]} 33... Rxe5 {[%clk 0:00:18.2]} 34. Rd1 {[%clk
0:00:09.7]} 34... Qc6 {[%clk 0:00:17.7]} 35. Qh8 {[%clk 0:00:07.9]} 35... Re6
{[%clk 0:00:16.7]} 36. Qd4 {[%clk 0:00:06.8]} 36... Rd6 {[%clk 0:00:15.4]} 37.
Qe3+ {[%clk 0:00:07.3]} 37... Re6 {[%clk 0:00:15.2]} 38. Qd4 {[%clk 0:00:07.8]}
38... Rd6 {[%clk 0:00:15]} 39. Qe3+ {[%clk 0:00:08.3]} 39... Be6 {[%clk
0:00:15.4]} 40. Qg3 {[%clk 0:00:08.6]} 40... Rxd1+ {[%clk 0:00:13.6]} 41. Bxd1
{[%clk 0:00:09.5]} 41... Qe4 {[%clk 0:00:14]} 42. Qxc7+ {[%clk 0:00:08.4]} 42...
Kf6 {[%clk 0:00:12.8]} 43. Kh2 {[%clk 0:00:09.1]} 43... Qe1 {[%clk 0:00:11.7]}
44. Bf3 {[%clk 0:00:08.8]} 44... Qxf2 {[%clk 0:00:10.4]} 45. Qg3 {[%clk
0:00:08.1]} 45... Qxb2 {[%clk 0:00:09.9]} 46. Qd6 {[%clk 0:00:06.5]} 46... Qxc3
{[%clk 0:00:09.9]} 47. Qxb6 {[%clk 0:00:06.1]} 47... Qe5+ {[%clk 0:00:09.8]} 48.
Kh1 {[%clk 0:00:05.3]} 48... Qa1+ {[%clk 0:00:09.8]} 49. Kh2 {[%clk 0:00:05]}
49... Qxa3 {[%clk 0:00:10.5]} 50. Qd8+ {[%clk 0:00:04.9]} 50... Kg7 {[%clk
0:00:10.4]} 51. Qd4+ {[%clk 0:00:04.6]} 51... Kg8 {[%clk 0:00:10.1]} 52. Qd8+
{[%clk 0:00:04]} 52... Qf8 {[%clk 0:00:08.9]} 53. Qxa5 {[%clk 0:00:03.2]} 53...
Qd6+ {[%clk 0:00:08.9]} 54. Kh1 {[%clk 0:00:02.4]} 54... Qd4 {[%clk 0:00:08.5]}
55. Qa8+ {[%clk 0:00:01.5]} 55... Kg7 {[%clk 0:00:08.8]} 56. Qa5 {[%clk
0:00:01.3]} 56... Kg6 {[%clk 0:00:08]} 57. Kh2 {[%clk 0:00:01.7]} 57... h5
{[%clk 0:00:07.7]} 58. Kh1 {[%clk 0:00:02.2]} 58... g4 {[%clk 0:00:08.1]} 59.
hxg4 {[%clk 0:00:03]} 59... hxg4 {[%clk 0:00:09]} 60. Be2 {[%clk 0:00:02.3]}
60... g3 {[%clk 0:00:07.5]} 61. Qe1 {[%clk 0:00:01.7]} 61... Qh4+ {[%clk
0:00:06.4]} 62. Kg1 {[%clk 0:00:02.6]} 62... Qh2+ {[%clk 0:00:07.1]} 63. Kf1
{[%clk 0:00:03.2]} 63... Qh1# {[%clk 0:00:08]} 0-1